fUST/lending_fUST_20250105
["ID","MTS","AMOUNT","RATE_DAILY","PERIOD"]
[347650748,1736019033373,-500.0,0.00014053,2]
[347650749,1736019033384,-500.0,0.00014053,2]
[347650750,1736019033393,-500.0,0.00014053,2]
[347650751,1736019033403,-500.0,0.00014053,2]
[347650752,1736019033412,-500.0,0.00014053,2]
[347650753,1736019033423,-500.0,0.00014053,2]
[347650754,1736019033432,-500.0,0.00014053,2]
[347650755,1736019033441,-500.0,0.00014053,2]
[347650756,1736019033451,-462.23251735,0.00014053,2]
[347650757,1736019033463,-500.0,0.00014053,2]
[347650758,1736019033472,-500.0,0.00014053,2]
[347650759,1736019033481,-500.0,0.00014053,2]
[347650760,1736019033491,-500.0,0.00014053,2]
[347650761,1736019033500,-500.0,0.00014053,2]
[347650762,1736019033509,-500.0,0.00014053,2]
[347650763,1736019033518,-500.0,0.00014053,2]
[347650764,1736019033528,-500.0,0.00014053,2]
[347650765,1736019033537,-500.0,0.00014053,2]
[347650766,1736019033546,-500.0,0.00014053,2]
[347650767,1736019033555,-500.0,0.00014053,2]
[347650768,1736019033565,-500.0,0.00014053,2]
[347650769,1736019033574,-500.0,0.00014053,2]
[347650770,1736019033583,-500.0,0.00014053,2]
[347650771,1736019033594,-500.0,0.00014053,2]
[347650772,1736019033603,-500.0,0.00014053,2]
[347650773,1736019033613,-500.0,0.00014053,2]
[347650774,1736019033622,-567.97930296,0.00014053,2]
[347650775,1736019033631,-500.0,0.00014053,2]
[347650776,1736019033640,-500.0,0.00014053,2]
[347650777,1736019033649,-500.0,0.00014053,2]
[347650778,1736019033659,-500.0,0.00014053,2]
[347650779,1736019033669,-500.0,0.00014053,2]
[347650780,1736019033678,-500.0,0.00014053,2]
[347650781,1736019033687,-500.0,0.00014053,2]
[347650782,1736019033697,-500.0,0.00014053,2]
[347650783,1736019033707,-500.0,0.00014053,2]
[347650784,1736019033716,-500.0,0.00014053,2]
[347650785,1736019033726,-500.0,0.00014053,2]
[347650786,1736019033737,-500.0,0.00014053,2]
[347650787,1736019033746,-500.0,0.00014053,2]
[347650788,1736019033756,-500.0,0.00014053,2]
[347650789,1736019033766,-151.0,0.00014054,2]
[347650790,1736019033775,-500.0,0.0001406,2]
[347650791,1736019033785,-326.64365374,0.0001406,2]
[347650792,1736019033794,-500.0,0.0001406,2]
[347650793,1736019033803,-24900.0,0.00014061,2]
[347650794,1736019033812,-500.0,0.000141,2]
[347650795,1736019033822,-151.0,0.000141,2]
[347650796,1736019033831,-152.0,0.00014103,2]
[347650797,1736019033841,-500.0,0.00014197,2]
[347650798,1736019033850,-151.0,0.0001426,2]
[347650799,1736019033860,-151.0,0.0001426,2]
[347650800,1736019033870,-151.0,0.0001426,2]
[347650801,1736019033880,-329.648874,0.0001426,2]
[347650802,1736019033890,-329.648874,0.0001426,2]
[347650803,1736019033900,-500.0,0.00014334,2]
[347650804,1736019033909,-190.719901,0.00014334,2]
[347650805,1736019033918,-151.0,0.00014334,2]
[347650806,1736019033928,-190.719901,0.00014334,2]
[347650807,1736019033937,-216.625232,0.00014334,2]
[347650808,1736019033946,-216.625232,0.00014334,2]
[347650809,1736019033956,-151.0,0.00014334,2]
[347650810,1736019033965,-151.0,0.00014334,2]
[347650811,1736019033974,-151.0,0.00014334,2]
[347650812,1736019033985,-151.0,0.00014334,2]
[347650813,1736019033994,-151.0,0.00014334,2]
[347650814,1736019034004,-151.0,0.00014334,2]
[347650815,1736019034014,-219.544044,0.00014334,2]
[347650816,1736019034024,-219.544044,0.00014334,2]
[347650817,1736019034034,-151.0,0.00014381,2]
[347650818,1736019034043,-151.0,0.00014381,2]
[347650819,1736019034053,-288.831231,0.00014381,2]
[347650820,1736019034063,-151.0,0.00014381,2]
[347650821,1736019034073,-500.0,0.00014471,2]
[347650822,1736019034083,-152.0,0.00014488,2]
[347650823,1736019034092,-500.0,0.00014608,2]
[347650824,1736019034102,-1002.6387302,0.00014648,2]
[347650825,1736019034112,-500.0,0.00014745,2]
[347650826,1736019034122,-8331.78383117,0.00014799,2]
[347650827,1736019034131,-500.0,0.00014882,2]
[347650828,1736019034140,-280.74087118,0.00014898,2]
[347650829,1736019034150,-502.54347369,0.000149,2]
[347650830,1736019034159,-500.0,0.000149,2]
[347650831,1736019034168,-239.01908821,0.000149,2]
[347650863,1736019038516,-260.98091179,0.000149,2]
[347650865,1736019038526,-320.02807398,0.000149,2]
[347650867,1736019038535,-500.0,0.000149,2]
[347650869,1736019038545,-500.0,0.000149,2]
[347650871,1736019038555,-186.99101423,0.000149,2]
[347651043,1736019234847,502.95723606,0.00013912,2]
[347651045,1736019309341,256.728235,0.00013806,2]
[347651052,1736019693978,163.214692,0.00013973,2]
[347651133,1736020240659,-377.26299996,0.00014012,2]
[347651134,1736020240671,-303.2774998,0.00014012,2]
[347651135,1736020240727,-292.728,0.00014012,2]
[347651141,1736020243565,-500.0,0.00014012,2]
[347651152,1736020254296,297.62966234,0.00013871,2]
[347651154,1736020445572,510.24389259,0.00013912,2]
[347651156,1736020600710,455.26147691,0.00013912,2]
[347651157,1736020651526,605.79681456,0.00013912,2]
[347651158,1736020721423,175.476462,0.00013973,2]
[347651162,1736020856881,349.84975715,0.00013912,2]
[347651163,1736020856913,180.22245559,0.00013912,2]
[347651164,1736020941386,364.20918152,0.00013912,2]
[347651166,1736020963962,10877.38540544,0.00013707,2]
[347651167,1736021000091,6776.6203475,0.00013955,2]
[347651178,1736021072231,1801.56260995,0.00013208,2]
[347651179,1736021072263,859.95073625,0.00013208,2]
[347651235,1736021432738,-151.0,0.00014061,2]
[347651237,1736021432748,-151.0,0.00014061,2]
[347651239,1736021432757,-1000.0,0.00014061,2]
[347651241,1736021432767,-291.36734524,0.00014067,2]
[347651243,1736021432776,-151.0,0.00014158,2]
[347651245,1736021432785,-300.0,0.00014165,2]
[347651247,1736021432794,-500.0,0.00014166,2]
[347651249,1736021432803,-365.00129157,0.00014166,2]
[347651251,1736021432813,-169.14594692,0.00014166,2]
[347651253,1736021432823,-386.70853194,0.00014166,2]
[347651256,1736021432834,-113.29146806,0.00014166,2]
[347651258,1736021432844,-500.0,0.00014166,2]
[347651260,1736021432854,-500.0,0.00014166,2]
[347651262,1736021432863,-500.0,0.00014166,2]
[347651264,1736021432872,-500.0,0.00014166,2]
[347651266,1736021432883,-416.91803194,0.00014166,2]
[347651269,1736021432903,-83.08196806,0.00014166,2]
[347651271,1736021432912,-524.1472415,0.00014166,2]
[347651273,1736021432924,-28.56786395,0.00014166,2]
[347651275,1736021432936,-156.62508768,0.00014166,2]
[347651277,1736021432945,-500.0,0.00014166,2]
[347651279,1736021432954,-500.0,0.00014166,2]
[347651281,1736021432963,-500.0,0.00014166,2]
[347651283,1736021432972,-341.3048963,0.00014166,2]
[347651285,1736021432981,-8022.06775831,0.00014166,2]
[347651287,1736021432990,-11034.90566871,0.00014166,2]
[347651289,1736021433002,-398.47239643,0.00014166,2]
[347651291,1736021433018,-7351.1052613,0.00014166,2]
[347651293,1736021433030,-493.65,0.00014166,2]
[347651312,1736021438625,-359.62620903,0.00014166,2]
[347651313,1736021438639,-2169.6366355,0.00014166,2]
[347651314,1736021438678,-304.46473158,0.00014166,2]
[347651318,1736021440757,-6952.89,0.00014166,2]
[347651319,1736021440770,-1091.18378186,0.00014166,2]
[347651332,1736021443882,-1571.55613673,0.00014166,2]
[347651333,1736021443896,-361.95984905,0.00014166,2]
[347651334,1736021443907,-4350.07039355,0.00014166,2]
[347651350,1736021446808,-4916.45,0.00014166,2]
[347651351,1736021446965,-1165.492,0.00014166,2]
[347651352,1736021450255,10877.38540544,0.00013925,2]
[347651353,1736021462900,196.2664726,0.00013885,2]
[347651355,1736021496562,1000.0,0.00013887,2]
[347651358,1736021556403,1000.0,0.00013808,2]
[347651359,1736021593024,159.672788,0.00013973,2]
[347651360,1736021616732,1000.0,0.00013795,2]
[347651361,1736021616772,700.97570884,0.00013786,2]
[347651362,1736021643755,196.2664726,0.00013865,2]
[347651364,1736021841430,4009.48241627,0.00013414,2]
[347651365,1736021841462,20000.0,0.00013414,2]
[347651366,1736021841494,890.51758373,0.00013414,2]
[347651367,1736021938277,6981.77837391,0.00013857,2]
[347651373,1736022495745,837.41768922,0.000125,2]
[347651412,1736022631930,-299.02429116,0.00014032,2]
[347651415,1736022631940,-1000.0,0.00014276,2]
[347651417,1736022631950,-227.19553,0.00014299,2]
[347651418,1736022631959,-1000.0,0.00014486,2]
[347651421,1736022631968,-577.6533826,0.0001475,2]
[347651423,1736022631977,-1000.0,0.0001484,2]
[347651425,1736022631987,-151.0,0.00014899,2]
[347651427,1736022631996,-155.493749,0.000149,2]
[347651429,1736022632005,-16493.87324135,0.00014992,2]
[347651431,1736022632014,-9690.90621231,0.00014997,2]
[347651433,1736022632026,-6802.96702904,0.00014997,2]
[347651435,1736022632035,-1084.50027538,0.00014998,2]
[347651437,1736022632046,-701.91788867,0.00014998,2]
[347651440,1736022632062,-379.99308121,0.00014998,2]
[347651517,1736022645860,-895.2974,0.00014998,2]
[347651523,1736022665037,159.809126,0.00013973,2]
[347651578,1736023195842,200000.0,0.00025,120]
[347651579,1736023255053,-580.0,0.00019177,35]
[347651583,1736023607837,-288.8266913,0.0001412,2]
[347651584,1736023607862,-288.8266913,0.00014848,2]
[347651585,1736023620655,422.3466174,0.00014848,2]
[347651586,1736023638364,-1385.52383631,0.00014848,2]
[347651587,1736023638387,-225.8270147,0.00014848,2]
[347651588,1736023638409,-274.45125289,0.00014997,2]
[347651589,1736023638432,-300.0,0.00014997,2]
[347651590,1736023638455,-3973.98868661,0.00014998,2]
[347651591,1736023686747,-444.0,0.0001425,2]
[347651592,1736023713095,165.992338,0.00013973,2]
[347651593,1736023713861,-234.95746424,0.00014163,2]
[347651594,1736023713885,-25.246,0.0001425,2]
[347651595,1736023727792,6165.99013087,0.00025,120]
[347651596,1736023738207,442.5279716,0.00025,120]
[347651597,1736023763403,-225.8270147,0.00014848,2]
[347651598,1736023763427,-300.0,0.00014997,2]
[347651599,1736023763452,-5633.96377581,0.00014998,2]
[347651600,1736023769810,442.5279716,0.00025,120]
[347651601,1736023803135,3121.0,0.00025,120]
[347651602,1736023803166,1902.5984749,0.00025,120]
[347651603,1736023803196,1046.0,0.00025,120]
[347651604,1736023807278,318.55,0.00022495,120]
[347651623,1736023832081,-259.03593564,0.00014748,2]
[347651625,1736023832096,-266.0,0.0001495,2]
[347651627,1736023832106,-300.0,0.00014997,2]
[347651629,1736023832116,-3824.21213367,0.00014998,2]
[347651631,1736023832126,-500.0,0.00014998,2]
[347651633,1736023832136,-500.0,0.00014998,2]
[347651635,1736023832145,-500.0,0.00014998,2]
[347651637,1736023832154,-500.0,0.00014998,2]
[347651639,1736023832166,-500.0,0.00014998,2]
[347651641,1736023832175,-500.0,0.00014998,2]
[347651643,1736023832184,-267.90987651,0.00014998,2]
[347651645,1736023832194,-500.0,0.00014998,2]
[347651647,1736023832203,-500.0,0.00014998,2]
[347651649,1736023832213,-500.0,0.00014998,2]
[347651651,1736023832223,-239.47124092,0.00014998,2]
[347651666,1736023832351,-260.52875908,0.00014998,2]
[347651668,1736023832361,-500.0,0.00014998,2]
[347651670,1736023832371,-391.880914,0.00014998,2]
[347651672,1736023832380,-151.0,0.00015261,2]
[347651674,1736023832389,-153.5419161,0.000153,2]
[347651676,1736023832399,-153.0,0.000153,2]
[347651678,1736023832408,-153.0,0.000153,2]
[347651680,1736023832417,-307.1757914,0.000153,2]
[347651682,1736023832427,-428.2658742,0.000153,2]
[347651684,1736023832437,-352.7875366,0.000153,2]
[347651686,1736023832447,-575.78737249,0.00015441,2]
[347651688,1736023832457,-246.09166629,0.00015479,2]
[347651690,1736023832466,-3767.40790002,0.00015488,2]
[347651692,1736023832477,-15892.7405919,0.00015488,2]
[347651694,1736023832489,-5239.85150808,0.00015488,2]
[347651697,1736023832498,-352.7875366,0.00015541,2]
[347651699,1736023832716,-227.195531,0.00015643,2]
[347651700,1736023832726,-508.62158386,0.00015801,2]
[347651701,1736023832735,-701.91788867,0.00016,2]
[347651703,1736023832745,-266.0,0.0001602,2]
[347651704,1736023832754,-420.0,0.00016413,2]
[347651705,1736023832764,-575.78737246,0.00016494,2]
[347651706,1736023832773,-467.18107919,0.00016591,2]
[347651707,1736023832782,-500.39385749,0.00017,2]
[347651708,1736023832791,-298.0,0.000171,2]
[347651709,1736023832800,-152.0,0.00017128,2]
[347651710,1736023832810,-151.0,0.00017405,2]
[347651711,1736023832819,-465.10905396,0.00017421,2]
[347651712,1736023832829,-151.0,0.0001745,2]
[347651713,1736023832838,-151.0,0.0001745,2]
[347651714,1736023832849,-151.0,0.0001745,2]
[347651715,1736023832859,-151.0,0.0001745,2]
[347651716,1736023832868,-151.0,0.0001745,2]
[347651717,1736023832879,-151.0,0.0001745,2]
[347651718,1736023832888,-151.0,0.0001745,2]
[347651719,1736023832897,-296.683987,0.0001745,2]
[347651720,1736023832907,-296.683987,0.0001745,2]
[347651721,1736023832916,-151.0,0.0001745,2]
[347651722,1736023832926,-197.58964,0.0001745,2]
[347651723,1736023832935,-151.0,0.0001745,2]
[347651724,1736023832945,-197.58964,0.0001745,2]
[347651725,1736023832954,-151.0,0.0001745,2]
[347651726,1736023832963,-151.0,0.0001745,2]
[347651727,1736023832972,-151.0,0.0001745,2]
[347651728,1736023832982,-151.0,0.0001745,2]
[347651729,1736023832991,-151.0,0.0001745,2]
[347651730,1736023833001,-151.0,0.0001745,2]
[347651731,1736023833010,-151.0,0.0001745,2]
[347651732,1736023833019,-151.0,0.0001745,2]
[347651733,1736023833030,-423.326736,0.0001745,2]
[347651734,1736023833040,-151.0,0.0001745,2]
[347651735,1736023833050,-151.0,0.0001745,2]
[347651736,1736023833059,-170.129328,0.0001745,2]
[347651737,1736023833069,-423.326736,0.0001745,2]
[347651738,1736023833079,-170.129328,0.0001745,2]
[347651739,1736023833091,-150.0,0.00017451,2]
[347651740,1736023833100,-535.0,0.00017451,2]
[347651741,1736023833110,-2084.0,0.00017451,2]
[347651742,1736023833119,-2320.0,0.00017451,2]
[347651743,1736023833129,-575.78737246,0.00017546,2]
[347651744,1736023833139,-233.09387616,0.000176,2]
[347651745,1736023833148,-151.0,0.00017698,2]
[347651746,1736023833157,-151.0,0.00017698,2]
[347651747,1736023833167,-151.0,0.00017698,2]
[347651748,1736023833177,-151.0,0.00017698,2]
[347651749,1736023833187,-151.0,0.00017698,2]
[347651750,1736023833196,-296.683987,0.00017698,2]
[347651751,1736023833206,-296.683987,0.00017698,2]
[347651752,1736023833215,-151.0,0.00017698,2]
[347651753,1736023833224,-151.0,0.00017698,2]
[347651754,1736023833233,-151.0,0.00017699,2]
[347651755,1736023833243,-151.0,0.00017699,2]
[347651756,1736023833252,-500.0,0.00017699,5]
[347651757,1736023833261,-194.962708,0.00017699,2]
[347651758,1736023833272,-194.962708,0.00017699,2]
[347651759,1736023833281,-194.962708,0.00017699,2]
[347651760,1736023833290,-194.962708,0.00017699,2]
[347651761,1736023833299,-151.0,0.00017699,2]
[347651762,1736023833309,-151.0,0.00017699,2]
[347651763,1736023833322,-151.0,0.00017699,2]
[347651764,1736023833331,-246.741114,0.00017699,2]
[347651765,1736023833340,-151.0,0.00017699,2]
[347651766,1736023833350,-151.0,0.00017699,2]
[347651767,1736023833359,-500.0,0.00017699,2]
[347651768,1736023833369,-260.14498848,0.00017699,2]
[347651769,1736023833378,-75.35886918,0.00017699,2]
[347651770,1736023833392,-205.10193543,0.00017699,2]
[347651771,1736023833402,-500.0,0.00017699,2]
[347651772,1736023833411,-172.04688338,0.00017699,2]
[347651773,1736023833421,-500.0,0.00017699,2]
[347651774,1736023833431,-500.0,0.00017699,2]
[347651775,1736023833440,-500.0,0.00017699,2]
[347651776,1736023833450,-500.0,0.00017699,2]
[347651777,1736023833460,-500.0,0.00017699,2]
[347651778,1736023833469,-500.0,0.00017699,2]
[347651779,1736023833479,-500.0,0.00017699,2]
[347651780,1736023833488,-500.0,0.00017699,2]
[347651781,1736023833498,-153.70464557,0.00017699,2]
[347651782,1736023833506,-500.0,0.00017699,2]
[347651783,1736023833516,-296.683987,0.00017699,2]
[347651784,1736023833526,-296.683987,0.00017699,2]
[347651785,1736023833536,-296.683987,0.00017699,2]
[347651786,1736023833546,-296.683987,0.00017699,2]
[347651787,1736023833556,-151.0,0.00017699,2]
[347651788,1736023833565,-151.0,0.00017699,2]
[347651789,1736023833575,-151.0,0.00017699,2]
[347651790,1736023833585,-151.0,0.00017699,2]
[347651791,1736023833594,-151.0,0.00017699,2]
[347651792,1736023833604,-151.0,0.00017699,2]
[347651793,1736023833613,-151.0,0.00017699,2]
[347651794,1736023833623,-151.0,0.00017699,2]
[347651795,1736023833633,-151.0,0.00017699,2]
[347651796,1736023833643,-151.0,0.00017699,2]
[347651797,1736023833652,-151.0,0.00017699,2]
[347651798,1736023833662,-151.0,0.00017699,2]
[347651799,1736023833671,-151.0,0.00017699,2]
[347651800,1736023833680,-151.0,0.00017699,2]
[347651801,1736023833690,-423.326736,0.00017699,2]
[347651802,1736023833700,-423.326736,0.00017699,2]
[347651803,1736023833709,-151.0,0.00017699,2]
[347651804,1736023833718,-151.0,0.00017699,2]
[347651805,1736023833728,-170.129328,0.00017699,2]
[347651806,1736023833737,-170.129328,0.00017699,2]
[347651807,1736023833747,-423.326736,0.00017699,2]
[347651808,1736023833756,-423.326736,0.00017699,2]
[347651809,1736023833767,-170.129328,0.00017699,2]
[347651810,1736023833776,-170.129328,0.00017699,2]
[347651811,1736023833787,-151.0,0.000177,2]
[347651812,1736023833796,-151.0,0.000177,2]
[347651813,1736023833806,-151.0,0.000177,2]
[347651814,1736023833815,-151.0,0.000177,2]
[347651815,1736023833826,-184.163289,0.000177,2]
[347651816,1736023833836,-184.163289,0.000177,2]
[347651817,1736023833845,-184.163289,0.000177,2]
[347651818,1736023833854,-184.163289,0.000177,2]
[347651819,1736023833864,-184.163289,0.000177,2]
[347651820,1736023833873,-184.163289,0.000177,2]
[347651821,1736023833883,-184.163289,0.000177,2]
[347651822,1736023833894,-184.163289,0.000177,2]
[347651823,1736023833903,-151.0,0.000177,2]
[347651824,1736023833913,-151.0,0.000177,2]
[347651825,1736023833922,-151.0,0.000177,2]
[347651826,1736023833932,-151.0,0.000177,2]
[347651827,1736023833941,-151.0,0.000177,2]
[347651828,1736023833951,-151.0,0.000177,2]
[347651829,1736023833960,-151.0,0.000177,2]
[347651830,1736023833970,-151.0,0.000177,2]
[347651831,1736023833979,-151.0,0.000177,2]
[347651832,1736023833989,-151.0,0.000177,2]
[347651833,1736023833998,-151.0,0.000177,2]
[347651834,1736023834007,-151.0,0.000177,2]
[347651835,1736023834018,-151.0,0.000177,2]
[347651836,1736023834028,-290.895288,0.000177,2]
[347651837,1736023834038,-151.0,0.000177,2]
[347651838,1736023834047,-151.0,0.000177,2]
[347651839,1736023834056,-151.0,0.000177,2]
[347651840,1736023834066,-151.0,0.000177,2]
[347651841,1736023834075,-151.0,0.000177,2]
[347651842,1736023834086,-151.0,0.000177,2]
[347651843,1736023834097,-296.52724,0.000177,2]
[347651844,1736023834107,-151.0,0.000177,2]
[347651845,1736023834117,-151.0,0.000177,2]
[347651846,1736023834127,-151.0,0.000177,2]
[347651847,1736023834137,-151.0,0.000177,2]
[347651848,1736023834146,-171.647911,0.000177,2]
[347651849,1736023834157,-171.647911,0.000177,2]
[347651850,1736023834167,-171.647911,0.000177,2]
[347651851,1736023834178,-171.647911,0.000177,2]
[347651852,1736023834188,-171.647911,0.000177,2]
[347651853,1736023834198,-171.647911,0.000177,2]
[347651854,1736023834207,-171.647911,0.000177,2]
[347651855,1736023834217,-171.647911,0.000177,2]
[347651856,1736023834227,-600.084975,0.000177,2]
[347651857,1736023834236,-600.084975,0.000177,2]
[347651858,1736023834246,-600.084975,0.000177,2]
[347651859,1736023834255,-600.084975,0.000177,2]
[347651860,1736023834265,-600.084975,0.000177,2]
[347651861,1736023834274,-600.084975,0.000177,2]
[347651862,1736023834284,-600.084975,0.000177,2]
[347651863,1736023834292,-600.084975,0.000177,2]
[347651864,1736023834302,-151.0,0.000177,2]
[347651865,1736023834312,-151.0,0.000177,2]
[347651866,1736023834322,-151.0,0.000177,2]
[347651867,1736023834332,-151.0,0.000177,2]
[347651868,1736023834341,-300.025393,0.000177,2]
[347651869,1736023834351,-151.0,0.000177,2]
[347651870,1736023834361,-151.0,0.000177,2]
[347651871,1736023834370,-151.0,0.000177,2]
[347651872,1736023834380,-151.0,0.000177,2]
[347651873,1736023834389,-151.0,0.000177,2]
[347651874,1736023834399,-151.0,0.000177,2]
[347651875,1736023834409,-186.612866,0.000177,2]
[347651876,1736023834418,-151.0,0.000177,2]
[347651877,1736023834428,-151.0,0.000177,2]
[347651878,1736023834438,-151.0,0.000177,2]
[347651879,1736023834448,-151.0,0.000177,2]
[347651880,1736023834458,-151.0,0.000177,2]
[347651881,1736023834468,-151.0,0.000177,2]
[347651882,1736023834477,-161.352098,0.000177,2]
[347651883,1736023834486,-194.962708,0.000177,2]
[347651884,1736023834496,-194.962708,0.000177,2]
[347651885,1736023834505,-194.962708,0.000177,2]
[347651886,1736023834514,-194.962708,0.000177,2]
[347651887,1736023834525,-194.962708,0.000177,2]
[347651888,1736023834534,-194.962708,0.000177,2]
[347651889,1736023834543,-194.962708,0.000177,2]
[347651890,1736023834552,-194.962708,0.000177,2]
[347651891,1736023834562,-194.962708,0.000177,2]
[347651892,1736023834571,-194.962708,0.000177,2]
[347651893,1736023834580,-194.962708,0.000177,2]
[347651894,1736023834590,-194.962708,0.000177,2]
[347651895,1736023834599,-194.962708,0.000177,2]
[347651896,1736023834608,-194.962708,0.000177,2]
[347651897,1736023834617,-5619.92589792,0.000177,2]
[347651898,1736023834627,-5619.92589787,0.000177,2]
[347651899,1736023834636,-5619.92589787,0.000177,2]
[347651900,1736023834645,-5619.92589787,0.000177,2]
[347651901,1736023834654,-5619.92589787,0.000177,2]
[347651902,1736023834663,-5619.92589787,0.000177,2]
[347651903,1736023834672,-5619.92589787,0.000177,2]
[347651904,1736023834681,-5619.92589787,0.000177,2]
[347651905,1736023834690,-151.0,0.000177,2]
[347651906,1736023834700,-151.0,0.000177,2]
[347651907,1736023834709,-151.0,0.000177,2]
[347651908,1736023834718,-151.0,0.000177,2]
[347651909,1736023834727,-151.0,0.000177,2]
[347651910,1736023834737,-151.0,0.000177,2]
[347651911,1736023834746,-151.0,0.000177,2]
[347651912,1736023834755,-151.0,0.000177,2]
[347651913,1736023834765,-151.0,0.000177,2]
[347651914,1736023834774,-151.0,0.000177,2]
[347651915,1736023834784,-151.0,0.000177,2]
[347651916,1736023834794,-151.0,0.000177,2]
[347651917,1736023834803,-151.0,0.000177,2]
[347651918,1736023834812,-151.0,0.000177,2]
[347651919,1736023834821,-151.0,0.000177,2]
[347651920,1736023834831,-151.0,0.000177,2]
[347651921,1736023834840,-151.0,0.000177,2]
[347651922,1736023834849,-151.0,0.000177,2]
[347651923,1736023834859,-151.0,0.000177,2]
[347651924,1736023834868,-151.0,0.000177,2]
[347651925,1736023834877,-192.288414,0.000177,2]
[347651926,1736023834887,-151.0,0.000177,2]
[347651927,1736023834897,-151.0,0.000177,2]
[347651928,1736023834907,-151.0,0.000177,2]
[347651929,1736023834916,-219.539898,0.000177,2]
[347651930,1736023834926,-296.683987,0.000177,2]
[347651931,1736023834936,-296.683987,0.000177,2]
[347651932,1736023834946,-296.683987,0.000177,2]
[347651933,1736023834955,-296.683987,0.000177,2]
[347651934,1736023834965,-296.683987,0.000177,2]
[347651935,1736023834974,-296.683987,0.000177,2]
[347651936,1736023834984,-296.683987,0.000177,2]
[347651937,1736023834993,-296.683987,0.000177,2]
[347651938,1736023835003,-296.683987,0.000177,2]
[347651939,1736023835012,-296.683987,0.000177,2]
[347651940,1736023835025,-296.683987,0.000177,2]
[347651941,1736023835035,-296.68397992,0.000177,2]
[347651942,1736023835045,-151.0,0.000177,2]
[347651943,1736023835054,-151.0,0.000177,2]
[347651944,1736023835064,-197.58964,0.000177,2]
[347651945,1736023835073,-151.0,0.000177,2]
[347651946,1736023835083,-197.58964,0.000177,2]
[347651947,1736023835095,-151.0,0.000177,2]
[347651948,1736023835105,-151.0,0.000177,2]
[347651949,1736023835114,-197.58964,0.000177,2]
[347651950,1736023835123,-151.0,0.000177,2]
[347651951,1736023835134,-197.58964,0.000177,2]
[347651952,1736023835143,-151.0,0.000177,2]
[347651953,1736023835154,-151.0,0.000177,2]
[347651954,1736023835164,-151.0,0.000177,2]
[347651955,1736023835173,-211.16706,0.000177,2]
[347651956,1736023835183,-197.58964,0.000177,2]
[347651957,1736023835193,-197.58964,0.000177,2]
[347651958,1736023835203,-197.58964,0.000177,2]
[347651959,1736023835213,-197.58964,0.000177,2]
[347651960,1736023835222,-151.0,0.000177,2]
[347651961,1736023835231,-151.0,0.000177,2]
[347651962,1736023835242,-151.0,0.000177,2]
[347651963,1736023835252,-151.0,0.000177,2]
[347651964,1736023835262,-212.254684,0.000177,2]
[347651965,1736023835273,-151.0,0.000177,2]
[347651966,1736023835282,-151.0,0.000177,2]
[347651967,1736023835291,-151.0,0.000177,2]
[347651968,1736023835301,-151.0,0.000177,2]